bitfinex/quotes_ETHUSD_20230113
["timestamp","ask_amount","ask_price","bid_price","bid_amount"]
[1673644300083,10.09391,1422.9,1422.5,8.27802867]
[1673644300409,20.72815272,1422.9,1422.5,3.87198719]
[1673644300623,20.76771087,1422.9,1422.5,1.185]
[1673644301285,20.76771087,1422.9,1422.4,27.5504852]
[1673644301669,20.76771087,1422.9,1422.4,18.0208752]
[1673644302741,6.71189087,1422.9,1422.4,25.0512452]
[1673644302914,6.71189087,1422.9,1422.5,19.06428452]
[1673644303128,13.73989087,1422.9,1422.5,19.12774319]
[1673644303613,6.71189087,1422.9,1422.5,26.15761319]
[1673644304456,1.54605257,1423.2,1422.7,1.182]
[1673644304614,19.21495042,1423.3,1422.8,7.27153272]
[1673644304615,0.15151101,1423.3,1422.8,7.27153272]
[1673644304819,0.08751101,1423.3,1422.8,26.05241139]
[1673644305154,0.08751101,1423.3,1423.0,21.0819]
[1673644305345,0.08751101,1423.3,1423.0,14.11805867]
[1673644305556,0.08751101,1423.3,1423.0,9.20533554]
[1673644305804,0.08751101,1423.3,1423.0,2.17803554]
[1673644306044,0.08751101,1423.3,1422.9,8.27620867]
[1673644306340,0.08751101,1423.3,1422.9,15.30395867]
[1673644307343,9.52404922,1423.3,1422.9,0.06345867]
[1673644307551,3.95020425,1423.3,1422.8,7.02828]
[1673644307798,6.38420425,1423.3,1422.8,7.09173867]
[1673644308084,0.63842042,1423.2,1422.8,7.09173867]
[1673644308305,2.31532938,1423.3,1422.8,7.09173867]
[1673644308632,4.26951101,1423.3,1422.8,7.09173867]
[1673644308849,4.26951101,1423.3,1422.8,14.12012867]
[1673644309237,0.08751101,1423.3,1423.1,1.18]
[1673644309502,0.08751101,1423.3,1423.1,22.26073]
[1673644309691,0.08751101,1423.3,1423.1,25.37116767]
[1673644309885,0.08751101,1423.3,1423.1,24.19116767]
[1673644310338,0.08951101,1423.3,1423.1,24.18916767]
[1673644310653,0.08751101,1423.3,1423.1,24.19116767]
[1673644310861,0.08751101,1423.3,1423.2,7.27511677]
[1673644311021,1.01e-06,1423.3,1423.2,21.39139544]
[1673644311650,1.01e-06,1423.3,1423.2,21.42396141]
[1673644312497,1.01e-06,1423.3,1423.2,28.45037141]
[1673644313785,0.36988868,1423.7,1423.2,45.59311413]
[1673644313980,0.36988868,1423.7,1423.6,2.363]
[1673644314192,0.36988868,1423.7,1423.6,23.43632]
[1673644314418,0.36988868,1423.7,1423.6,23.49977867]
[1673644316328,0.07730667,1423.8,1423.6,23.49977867]
[1673644316506,0.07730667,1423.8,1423.7,1.19023416]
[1673644316718,0.07730667,1423.8,1423.7,24.73108544]
[1673644317057,0.07730667,1423.8,1423.7,25.97254411]
[1673644319592,1.1549272,1424.5,1423.8,0.077]
[1673644319753,0.06,1424.8,1424.6,11.02133272]
[1673644319958,3.13041697,1425.4,1424.9,7.01757]
[1673644319959,0.064,1425.3,1424.9,7.01757]
[1673644320207,0.002,1425.3,1424.9,28.13511867]
[1673644320517,0.1125619,1425.3,1424.9,7.08102867]
[1673644320731,1.185,1425.1,1424.9,7.08102867]
[1673644320955,1.185,1425.1,1424.9,0.06345867]
[1673644320956,2.5,1425.0,1424.9,0.06345867]
[1673644321167,2.5,1425.0,1424.6,14.10169867]
[1673644321168,0.3685,1425.0,1424.6,14.10169867]
[1673644321322,1.185,1425.1,1424.6,21.12086867]
[1673644322717,4.185,1425.1,1424.6,21.12086867]
[1673644323544,3.0,1425.1,1424.7,1.176]
[1673644323774,3.0,1425.1,1424.8,14.03686]
[1673644323993,3.0,1425.1,1424.8,14.10031867]
[1673644323994,0.3066,1425.1,1424.8,14.10031867]
[1673644324206,0.3066,1425.1,1424.8,7.08188867]
[1673644324425,0.3066,1425.1,1424.8,0.06345867]
[1673644324738,16.5,1424.9,1424.7,0.06345867]
[1673644324904,10.01852,1424.8,1424.7,0.004]
[1673644325102,18.98304,1424.8,1424.7,0.004]
[1673644325575,23.29793673,1424.8,1424.7,0.004]
[1673644326468,23.29793673,1424.8,1424.2,7.06460084]
[1673644326695,5.02133272,1424.7,1424.2,7.06460084]
[1673644326893,7.10846599,1424.6,1424.2,7.07039883]
[1673644327106,7.17446599,1424.6,1424.2,7.07039883]
[1673644327460,7.17446599,1424.6,1424.2,8.24339883]
[1673644328378,14.19404599,1424.6,1424.2,8.24339883]
[1673644329039,3.60633272,1424.5,1424.2,0.04315084]
[1673644329206,27.66780272,1424.4,1424.1,0.03076505]
[1673644329416,28.91580272,1424.4,1424.1,0.03076505]
[1673644329630,2.89158027,1424.3,1424.1,0.03076505]
[1673644329947,9.91270027,1424.3,1424.1,0.03076505]
[1673644330189,9.97870027,1424.3,1424.1,0.03076505]
[1673644333571,16.99982027,1424.3,1424.1,0.03076505]
[1673644334149,16.99982027,1424.3,1424.1,0.03076504]
[1673644334672,0.066,1424.3,1424.1,0.03076504]
[1673644334921,6.60633272,1424.4,1424.1,14.07469504]
[1673644334922,3.066,1424.4,1424.1,14.07469504]
[1673644335133,10.08601,1424.5,1424.1,14.11784566]
[1673644335343,10.08601,1424.5,1424.1,15.68108809]
[1673644335662,10.08601,1424.5,1424.1,15.68108798]
[1673644335872,10.08601,1424.5,1424.1,15.68108784]
[1673644336095,10.08601,1424.5,1424.1,15.6810878]
[1673644336245,10.08601,1424.5,1424.1,15.68108773]
[1673644336575,10.08601,1424.5,1424.1,15.6810877]
[1673644336796,10.08601,1424.5,1424.1,15.68108768]
[1673644337144,10.08601,1424.5,1424.1,15.68108767]
[1673644337297,2.916,1424.5,1424.1,15.68108766]
[1673644337521,0.066,1424.6,1424.3,8.19497]
[1673644337733,21.12369,1424.7,1424.3,8.27227409]
[1673644337948,14.10441,1424.7,1424.3,8.27227409]
[1673644338263,10.920587,1424.7,1424.3,8.27227409]
[1673644338503,17.939927,1424.7,1424.3,8.27227409]
[1673644338723,0.066,1424.7,1424.3,22.31425409]
[1673644338941,0.066,1424.8,1424.5,1.185]
[1673644339121,0.066,1424.8,1424.5,8.2047]
[1673644339122,3.0,1424.8,1424.5,8.2047]
[1673644339464,15.63854,1424.9,1424.5,15.26785084]
[1673644339653,0.066,1424.9,1424.5,24.63085084]
[1673644339867,7.08323,1425.1,1424.5,24.63085084]
[1673644340057,3.60633272,1425.0,1424.5,24.63085084]
[1673644340464,7.08323,1425.1,1424.5,24.63085084]
[1673644340465,14.10061,1425.1,1424.5,24.63085084]
[1673644340674,7.01755,1425.0,1424.6,3.64208508]
[1673644340933,3.60633272,1424.9,1424.5,1.21915084]
[1673644341150,17.64381272,1424.8,1424.4,8.24849084]
[1673644341299,17.70981272,1424.8,1424.4,14.08378084]
[1673644341838,10.69092272,1424.8,1424.4,14.08378084]
[1673644342051,10.69092272,1424.8,1424.4,24.37608002]
[1673644342052,0.066,1424.8,1424.4,24.37608002]
[1673644342312,10.01764,1425.0,1424.5,1.185]
[1673644342619,20.64297272,1424.9,1424.6,0.03289435]
[1673644342833,6.61033272,1424.9,1424.6,0.03289435]
[1673644342987,15.76114499,1424.9,1424.6,0.03289435]
[1673644343196,15.76114499,1424.9,1424.4,14.22293056]
[1673644343197,3.60633272,1424.8,1424.4,1.25891137]
[1673644343529,21.05706,1424.7,1424.4,0.03076048]
[1673644343749,14.10404,1424.7,1424.4,0.03076048]
[1673644344353,0.066,1424.7,1424.4,0.03076048]
[1673644344604,7.08461,1424.8,1424.4,14.77984966]
[1673644344925,7.08461,1424.8,1424.4,7.80252032]
[1673644345148,14.10322,1424.8,1424.4,7.80252026]
[1673644345311,0.066,1424.8,1424.7,1.185]
[1673644345644,7.0183,1424.9,1424.7,1.185]
[1673644345837,7.0183,1424.9,1424.7,1.4211]
[1673644345838,7.08412,1424.9,1424.7,1.4211]
[1673644346188,14.10224,1424.9,1424.7,1.4211]
[1673644346500,14.10224,1424.9,1424.6,1.176]
[1673644346501,14.10224,1424.9,1424.6,1.18106883]
[1673644346716,21.12036,1424.9,1424.6,1.18106883]
[1673644347081,6.60633272,1424.8,1424.4,1.25891091]
[1673644347328,21.05736,1424.7,1424.4,0.03076003]
[1673644347550,23.89632927,1424.7,1424.4,0.03076003]
[1673644347772,2.83896927,1424.7,1424.4,0.03076003]
[1673644348092,6.37930199,1424.7,1424.4,0.03076003]
[1673644348304,6.44530199,1424.7,1424.4,0.03076003]
[1673644349794,6.44530199,1424.7,1424.4,0.03076002]
[1673644349795,13.46435199,1424.7,1424.4,0.03076002]
[1673644349966,1.3464352,1424.6,1424.4,0.03076002]
[1673644350642,22.4053152,1424.6,1424.4,0.03076002]
[1673644350811,22.4713152,1424.6,1424.4,0.03076002]
[1673644351018,19.05780792,1424.6,1424.4,0.03076002]
[1673644351668,12.03827792,1424.6,1424.4,0.03076002]
[1673644351868,0.066,1424.6,1424.4,0.03076002]
[1673644352217,17.79613479,1424.8,1424.4,1.59476002]
[1673644352218,23.32539,1424.8,1424.4,1.59476002]
[1673644352552,0.066,1424.8,1424.4,15.63573999]
[1673644352692,7.0187,1424.8,1424.4,15.67889059]
[1673644352904,0.066,1424.8,1424.4,17.94883548]
[1673644353113,16.69498443,1424.9,1424.4,24.96932546]
[1673644353334,20.76432279,1424.9,1424.4,24.96932523]
[1673644353545,25.81880971,1424.9,1424.4,24.96932515]
[1673644353852,1.03707964,1424.8,1424.4,17.94883508]
[1673644354076,8.05561964,1424.8,1424.4,17.94883491]
[1673644354287,8.12161964,1424.8,1424.4,17.95552634]
[1673644354499,8.12161964,1424.8,1424.4,17.95552625]
[1673644354685,8.12161964,1424.8,1424.4,17.95552624]
[1673644354897,15.14015964,1424.8,1424.4,17.95552615]
[1673644355105,15.14015964,1424.8,1424.4,17.95552606]
[1673644355401,15.97757537,1424.8,1424.4,10.93503603]
[1673644355582,24.55145016,1424.8,1424.4,0.08060094]
[1673644355744,5.59241443,1424.7,1424.4,0.0374501]
[1673644355949,15.07609964,1424.6,1424.4,0.03075852]
[1673644356159,8.12258964,1424.6,1424.4,0.03075852]
[1673644356581,23.71694443,1424.6,1424.4,0.03075852]
[1673644356791,2.37169444,1424.5,1424.4,0.03075852]
[1673644357104,23.43169444,1424.5,1424.4,0.03075852]
[1673644357350,24.53477408,1424.5,1424.4,0.03075852]
[1673644357941,1.10307964,1424.5,1424.4,0.03075852]
[1673644358192,1.03707964,1424.6,1424.4,0.03075852]
[1673644358521,1.03707964,1424.6,1424.4,7.05123852]
[1673644358735,1.03707964,1424.6,1424.4,7.09438928]
[1673644358889,1.03707964,1424.6,1424.4,0.07390922]
[1673644359100,1.03707964,1424.6,1424.4,7.05112838]
[1673644359340,1.03707964,1424.6,1424.4,9.39674168]
[1673644359571,3.69632387,1424.7,1424.4,9.39674168]
[1673644359572,1.10307964,1424.7,1424.4,25.01172162]
[1673644359786,2.59241443,1424.7,1424.4,25.01172122]
[1673644359990,1.03707964,1424.7,1424.4,25.01172105]
[1673644360205,1.03707964,1424.7,1424.4,25.01172087]
[1673644360380,1.03907964,1424.7,1424.5,2.50117209]
[1673644360590,1.03707964,1424.7,1424.5,9.55170952]
[1673644360810,1.03707964,1424.7,1424.5,9.59486033]
[1673644361014,1.03707964,1424.7,1424.5,9.59486031]
[1673644361224,1.03707964,1424.7,1424.5,9.59486028]
[1673644361517,1.03707964,1424.7,1424.5,23.63486028]
[1673644361762,1.03707964,1424.7,1424.5,23.63486018]
[1673644361982,2.65841443,1424.8,1424.6,25.00395135]
[1673644362154,1.03707964,1424.8,1424.6,25.04710219]
[1673644362359,1.03707964,1424.8,1424.6,25.07785845]
[1673644362360,2.59241443,1424.8,1424.6,25.07785845]
[1673644362569,2.59241443,1424.8,1424.6,18.05834833]
[1673644362938,1.03707964,1424.7,1424.6,2.44532816]
[1673644363143,1.03707964,1424.7,1424.6,2.40217728]
[1673644363310,1.03707964,1424.7,1424.6,1.01769122]
[1673644363526,1.03707964,1424.7,1424.6,1.01769121]
[1673644364551,1.03707964,1424.7,1424.6,1.0176912]
[1673644365564,0.78707964,1424.7,1424.6,1.01769119]
[1673644366127,0.78707964,1424.7,1424.6,1.01769118]
[1673644366281,0.78707964,1424.7,1424.6,0.03869118]
[1673644367019,0.78707964,1424.7,1424.6,1.01769118]
[1673644367455,0.78707964,1424.7,1424.6,8.03720118]
[1673644367668,0.78707964,1424.7,1424.6,8.08035199]
[1673644367911,0.78707964,1424.7,1424.6,8.08035197]
[1673644368103,0.78707964,1424.7,1424.6,8.08035196]
[1673644368436,0.78707964,1424.7,1424.6,8.08035194]
[1673644368603,0.78707964,1424.7,1424.6,8.08035189]
[1673644368806,0.78707964,1424.7,1424.6,8.08035187]
[1673644369064,0.78707964,1424.7,1424.6,8.08035186]
[1673644369277,1.55533479,1424.8,1424.6,10.44853601]
[1673644369491,1.62133479,1424.9,1424.6,19.04204598]
[1673644369797,1.62133479,1424.9,1424.6,19.0420457]
[1673644369798,3.63032387,1424.9,1424.6,19.0420457]
[1673644370018,3.63032387,1424.9,1424.6,19.04204551]
[1673644370177,3.63032387,1424.9,1424.6,26.06155543]
[1673644370386,3.63032387,1424.9,1424.6,26.06155538]
[1673644370586,3.63032387,1424.9,1424.6,26.06155523]
[1673644370804,3.63032387,1424.9,1424.6,26.06155512]
[1673644371057,3.63032387,1424.9,1424.6,26.06155511]
[1673644371365,1.55533479,1424.8,1424.6,26.06155503]
[1673644371580,1.55533479,1424.8,1424.6,9.65435069]
[1673644371795,1.55533479,1424.8,1424.6,9.65435062]
[1673644371973,1.55533479,1424.8,1424.6,9.65435059]
[1673644372178,1.55533479,1424.8,1424.6,9.65435057]
[1673644372393,1.55533479,1424.8,1424.6,9.65435055]
[1673644372973,1.55533479,1424.8,1424.6,9.65435053]
[1673644373357,1.55533479,1424.8,1424.6,9.65435052]
[1673644373565,1.55533479,1424.8,1424.6,9.65435051]
[1673644373774,1.55533479,1424.8,1424.6,16.67386051]
[1673644373993,1.55533479,1424.8,1424.6,19.74518251]
[1673644374237,1.55533479,1424.8,1424.6,19.74518249]
[1673644374544,1.55533479,1424.7,1424.6,19.74518248]
[1673644374860,1.55533479,1424.7,1424.6,26.76469234]
[1673644375180,3.69632387,1424.8,1424.6,26.76469225]
[1673644375340,1.55533479,1424.7,1424.6,26.76469199]
[1673644375710,1.0505131,1424.7,1424.6,19.74518184]
[1673644376040,1.0505131,1424.7,1424.6,26.76469173]
[1673644376348,3.69632387,1424.8,1424.6,26.7646917]
[1673644376349,2.67184789,1424.8,1424.6,26.7646917]
[1673644376497,1.0505131,1424.8,1424.7,4.23546917]
[1673644376864,1.0505131,1424.8,1424.7,25.32328221]
[1673644377050,1.0505131,1424.8,1424.7,25.3664327]
[1673644377232,2.60584789,1424.9,1424.7,26.94043248]
[1673644377434,1.0505131,1424.9,1424.8,4.26804325]
[1673644377647,1.0505131,1424.9,1424.8,25.32360325]
[1673644377968,1.0505131,1424.9,1424.8,25.36675409]
[1673644378212,1.0505131,1424.9,1424.8,25.39750607]
[1673644378432,1.0505131,1424.9,1424.8,25.39750603]
[1673644378644,1.0505131,1424.9,1424.8,18.37898592]
[1673644378815,1.0505131,1424.9,1424.8,18.37898579]
[1673644379049,1.0505131,1424.9,1424.8,4.34194554]
[1673644379256,1.0505131,1424.9,1424.8,1.6047514]
[1673644379510,1.0505131,1424.9,1424.8,1.60475137]
[1673644379700,1.0505131,1424.9,1424.8,15.64179135]
[1673644380041,1.0505131,1424.9,1424.8,8.66642206]
[1673644380209,1.0505131,1424.9,1424.8,15.68494198]
[1673644380418,1.0505131,1424.9,1424.8,18.1126991]
[1673644380611,1.0505131,1424.9,1424.8,18.11269896]
[1673644380818,1.0505131,1424.9,1424.8,21.71903157]
[1673644381030,1.55533479,1425.0,1424.8,21.71903138]
[1673644381031,2.60584789,1425.0,1424.8,21.71903138]
[1673644381253,1.0505131,1425.0,1424.9,8.58003]
[1673644381516,1.0505131,1425.0,1424.9,1.60515084]
[1673644381662,1.0505131,1425.0,1424.9,3.37206982]
[1673644382304,1.0505131,1425.0,1424.9,17.40812982]
[1673644382519,1.0505131,1425.0,1424.9,17.45128066]
[1673644382744,1.0505131,1425.0,1424.9,17.48203049]
[1673644382979,2.60584789,1425.1,1424.9,17.49034052]
[1673644383261,2.60584789,1425.1,1425.0,17.35811405]
[1673644383509,2.14098908,1425.2,1425.0,29.58813761]
[1673644383510,1.1165131,1425.2,1425.0,29.58813761]
[1673644383724,1.0505131,1425.2,1425.1,1.564]
[1673644383895,1.0505131,1425.2,1425.1,18.55591376]
[1673644384104,1.0505131,1425.2,1425.1,18.5990646]
[1673644385726,1.0505131,1425.2,1425.1,25.6161146]
[1673644385936,2.60584789,1425.3,1425.1,25.6161146]
[1673644386246,2.60584789,1425.3,1425.2,25.18526146]
[1673644386466,1.0505131,1425.3,1425.2,25.2284123]
[1673644386637,1.1165131,1425.4,1425.2,25.2284123]
[1673644386835,1.0505131,1425.4,1425.3,24.80258163]
[1673644387046,1.0505131,1425.4,1425.3,24.84573247]
[1673644387304,3.80587256,1425.5,1425.3,24.84573247]
[1673644387305,2.78139658,1425.5,1425.3,24.84573247]
[1673644387455,2.78139658,1425.5,1425.4,1.565]
[1673644387456,2.71539658,1425.5,1425.4,1.565]
[1673644387670,4.66488348,1425.5,1425.4,1.565]
[1673644388018,0.49107411,1425.3,1425.2,2.56161146]
[1673644388238,0.49107411,1425.3,1425.1,1.67074494]
[1673644388414,0.49107411,1425.3,1425.1,8.62175492]
[1673644388415,1.53842157,1425.3,1425.1,8.62175492]
[1673644388621,1.53842157,1425.3,1425.1,15.70480485]
[1673644388846,1.53842157,1425.3,1425.1,8.68775477]
[1673644389063,1.04734746,1425.2,1425.1,0.09674473]
[1673644389280,1.04734746,1425.2,1425.1,0.03074471]
[1673644389461,2.58053847,1425.3,1425.1,15.04384471]
[1673644389462,1.53842157,1425.3,1425.1,15.04384471]
[1673644389673,0.49107411,1425.3,1425.1,22.12689456]
[1673644389881,0.49107411,1425.3,1425.1,28.64763146]
[1673644390091,0.49107411,1425.3,1425.1,28.64763126]
[1673644390346,0.49107411,1425.3,1425.1,28.64763116]
[1673644390557,1.53842157,1425.3,1425.1,28.64763114]
[1673644390875,0.49107411,1425.3,1425.1,28.64763105]
[1673644391102,0.49107411,1425.3,1425.2,23.54965]
[1673644391246,0.49107411,1425.3,1425.2,21.11565]
[1673644391463,0.49107411,1425.3,1425.2,24.58406807]
[1673644391670,0.49107411,1425.3,1425.2,24.61481126]
[1673644391916,0.49107411,1425.3,1425.2,24.61481115]
[1673644392105,0.49307411,1425.3,1425.2,24.612811]
[1673644392334,0.49107411,1425.3,1425.2,29.78514361]
[1673644392523,0.10954869,1425.5,1425.3,4.074]
[1673644392876,0.10954869,1425.5,1425.4,30.02968]
[1673644393206,0.10954869,1425.5,1425.4,21.11271]
[1673644393350,0.10954869,1425.5,1425.4,7.08157]
[1673644393871,0.10954869,1425.5,1425.4,0.066]
[1673644393872,1.08754869,1425.5,1425.4,0.066]
[1673644394090,1.08754869,1425.5,1425.2,0.09674135]
[1673644394091,25.79506259,1425.5,1425.2,0.09674135]
[1673644394293,4.99142913,1425.4,1425.2,0.03074134]
[1673644394879,6.56245031,1425.4,1425.2,0.03074134]
[1673644395026,2.5,1425.3,1425.2,0.03074134]
[1673644395236,3.41284503,1425.3,1425.2,0.03074134]
[1673644395689,1.22109641,1425.4,1425.2,0.03074134]
[1673644395910,1.04634154,1425.4,1425.2,0.03074134]
[1673644396120,25.51061141,1425.5,1425.2,7.04726134]
[1673644396309,1.04634154,1425.4,1425.2,7.11326129]
[1673644396532,1.04634154,1425.4,1425.2,14.12981124]
[1673644396739,25.51061141,1425.5,1425.2,16.24446735]
[1673644397070,1.04634154,1425.4,1425.2,16.24446719]
[1673644397226,1.04634154,1425.4,1425.2,23.26101712]
[1673644397444,0.002,1425.4,1425.2,23.25901696]
[1673644397653,22.51061141,1425.5,1425.2,23.2610168]
[1673644397910,22.51061141,1425.5,1425.2,23.26101662]
[1673644398140,0.17554869,1425.5,1425.4,21.04671]
[1673644398289,0.10954869,1425.5,1425.4,21.11271]
[1673644399352,0.10954869,1425.5,1425.4,22.67671]
[1673644399558,0.10954869,1425.5,1425.4,25.18006512]
[1673644400192,1.08754869,1425.5,1425.4,0.09673901]
[1673644400444,0.10954869,1425.5,1425.4,14.06187901]
[1673644400603,0.10954869,1425.5,1425.4,21.14344894]
[1673644400813,0.10954869,1425.5,1425.4,21.1434488]
[1673644401013,0.10954869,1425.5,1425.4,21.14344861]
[1673644401223,0.10954869,1425.5,1425.4,24.11555242]
[1673644401431,0.10954869,1425.5,1425.4,24.11555231]
[1673644401695,0.10954869,1425.5,1425.4,24.11555227]
[1673644401910,0.10954869,1425.5,1425.4,24.11555226]
[1673644402075,0.10954869,1425.5,1425.4,24.11555221]
[1673644402433,0.10954869,1425.5,1425.4,24.11555199]
[1673644402654,0.10954869,1425.6,1425.4,30.85788458]
[1673644402805,0.10954869,1425.6,1425.5,10.75212118]
[1673644403019,0.10954869,1425.6,1425.5,31.883716]
[1673644403593,0.12760861,1425.9,1425.7,28.05636]
[1673644403749,0.12760861,1425.9,1425.8,0.99935054]
[1673644403750,1.17395015,1425.9,1425.8,0.99935054]
[1673644404192,1.17395015,1425.9,1425.8,11.61928326]
[1673644404406,1.17395015,1425.9,1425.8,21.27019559]
[1673644404407,0.12760861,1425.9,1425.8,21.27019559]
[1673644404772,0.12760861,1425.9,1425.8,22.84419559]
[1673644405833,0.12760861,1425.9,1425.8,10.65026287]
[1673644406139,0.12760861,1425.9,1425.8,0.08635054]
[1673644406342,0.12760861,1425.9,1425.8,0.02035054]
[1673644406552,0.12760861,1425.9,1425.8,7.03395054]
[1673644406713,0.12760861,1425.9,1425.8,14.11355054]
[1673644407179,0.12760861,1425.9,1425.8,16.22628359]
[1673644407372,0.12760861,1425.9,1425.8,14.11355054]
[1673644407717,0.12760861,1425.9,1425.8,0.08635054]
[1673644407929,0.12760861,1425.9,1425.8,7.03395054]
[1673644408097,0.12760861,1425.9,1425.8,7.09995054]
[1673644408290,0.12760861,1425.9,1425.8,14.11355054]
[1673644408923,0.12760861,1425.9,1425.8,23.23987859]
[1673644409182,0.12760861,1425.9,1425.8,2.19907859]
[1673644409368,0.12760861,1425.9,1425.8,14.04755054]
[1673644409576,0.12760861,1425.9,1425.8,7.09995054]
[1673644409768,0.12760861,1425.9,1425.8,0.08635054]
[1673644409985,0.12760861,1425.9,1425.8,7.03395054]
[1673644410245,0.12760861,1425.9,1425.8,14.11355054]
[1673644410762,1.10560861,1425.9,1425.8,0.066]
[1673644411092,1.10560861,1425.9,1425.7,7.01405]
[1673644411093,2.79402481,1425.9,1425.7,7.01405]
[1673644411401,1.04469434,1425.8,1425.7,0.066]
[1673644411610,1.33280131,1425.8,1425.6,7.1110536]
[1673644411765,1.33280131,1425.8,1425.6,7.11125353]
[1673644411973,1.33280131,1425.8,1425.6,0.09673348]
[1673644411974,1.04469434,1425.7,1425.6,0.09673348]
[1673644412189,1.04469434,1425.7,1425.6,0.03073347]
[1673644412190,1.33507659,1425.7,1425.6,0.03073347]
[1673644412405,1.23830295,1425.9,1425.6,21.07447347]
[1673644412654,1.17230295,1425.9,1425.6,21.14047323]
[1673644412814,1.17230295,1425.9,1425.6,21.14047304]
[1673644413029,1.17230295,1425.9,1425.6,21.14255896]
[1673644413284,1.17230295,1425.9,1425.6,23.95828876]
[1673644413438,1.17230295,1425.9,1425.6,23.9582886]
[1673644413658,0.12760861,1425.9,1425.7,6.10633272]
[1673644413965,8.61e-06,1425.9,1425.8,22.02188574]
[1673644414179,22.86621359,1426.1,1425.8,25.69421846]
[1673644414180,1.23726377,1426.1,1425.8,25.69421846]
[1673644414431,0.12656943,1426.1,1425.9,2.56942185]
[1673644414747,0.12656943,1426.1,1426.0,21.03786]
[1673644414963,0.12656943,1426.1,1426.0,21.10386]
[1673644415481,0.12656943,1426.1,1426.0,0.066]
[1673644415482,1.17126377,1426.1,1426.0,0.066]
[1673644415708,4.04680819,1426.1,1425.8,0.066]
[1673644415862,1.04544485,1426.0,1425.8,7.01334]
[1673644416216,2.61646603,1426.0,1425.8,7.07934]
[1673644417574,1.04544485,1425.9,1425.8,14.09294]
[1673644419367,1.04544485,1426.0,1425.8,23.22236483]
[1673644419892,1.04544485,1426.0,1425.8,23.25309517]
[1673644420217,2.74303546,1426.1,1425.8,26.85942783]
[1673644420388,2.74303546,1426.1,1425.9,2.68594278]
[1673644420600,2.74303546,1426.1,1426.0,21.03786]
[1673644420977,2.74303546,1426.1,1426.0,21.10386]
[1673644421118,3.77257969,1426.1,1426.0,0.066]
[1673644421328,2.20155851,1426.1,1425.9,7.01307]
[1673644421541,1.04612776,1426.0,1425.9,17.69823272]
[1673644421751,2.80788707,1426.1,1425.9,14.09194]
[1673644421986,2.74188707,1426.1,1425.9,14.09194]
[1673644422308,2.74188707,1426.1,1425.9,21.10505]
[1673644422519,2.74388707,1426.1,1425.9,14.08994]
[1673644422749,2.74188707,1426.1,1425.9,21.10505]
[1673644422922,1.04612776,1426.0,1425.9,21.10505]
[1673644423143,1.04612776,1426.0,1425.9,23.91994492]
[1673644423312,1.04612776,1426.0,1425.9,21.10505]
[1673644424046,2.74188707,1426.1,1425.9,21.10505]
[1673644426513,0.12656943,1426.1,1426.0,0.98108545]
[1673644426733,0.12656943,1426.1,1426.0,24.51894545]
[1673644426886,0.12656943,1426.1,1426.0,24.58494545]
[1673644427087,0.12656943,1426.1,1426.0,28.96634008]
[1673644427298,0.12656943,1426.1,1426.0,34.1376728]
[1673644429135,9.43e-06,1426.1,1426.0,34.1376728]
[1673644429352,9.43e-06,1426.1,1426.0,34.16839883]
[1673644429565,9.43e-06,1426.1,1426.0,34.16839866]
[1673644429717,9.43e-06,1426.1,1426.0,34.16839846]
[1673644429931,9.43e-06,1426.1,1426.0,34.16839836]
[1673644430192,9.43e-06,1426.1,1426.0,34.1683983]
[1673644430503,9.43e-06,1426.1,1426.0,34.16839822]
[1673644430826,9.43e-06,1426.1,1426.0,34.16839816]
[1673644430993,9.43e-06,1426.1,1426.0,34.16839803]
[1673644431202,9.43e-06,1426.1,1426.0,34.16839787]
[1673644431415,9.43e-06,1426.1,1426.0,34.16839754]
[1673644431640,9.43e-06,1426.1,1426.0,34.16839727]
[1673644431850,9.43e-06,1426.1,1426.0,34.16839704]
[1673644432065,9.43e-06,1426.1,1426.0,35.7423969]
[1673644432277,9.43e-06,1426.1,1426.0,47.68550023]
[1673644432606,9.43e-06,1426.1,1426.0,46.15739655]
[1673644432764,9.43e-06,1426.1,1426.0,46.1573963]
[1673644432971,9.43e-06,1426.1,1426.0,46.15739618]
[1673644433185,9.43e-06,1426.1,1426.0,46.15739614]
[1673644433429,9.43e-06,1426.1,1426.0,46.15739594]
[1673644433660,9.43e-06,1426.1,1426.0,46.23473581]
[1673644433845,9.43e-06,1426.1,1426.0,38.81973573]
[1673644434074,9.43e-06,1426.1,1426.0,38.81973561]
[1673644434236,9.43e-06,1426.1,1426.0,38.81973549]
[1673644434448,9.43e-06,1426.1,1426.0,37.24573544]
[1673644434657,9.43e-06,1426.1,1426.0,37.24573526]
[1673644434868,9.43e-06,1426.1,1426.0,37.24573511]
[1673644435079,9.43e-06,1426.1,1426.0,37.245735]
[1673644435378,9.43e-06,1426.1,1426.0,37.24573492]
[1673644435512,9.43e-06,1426.1,1426.0,37.24573486]
[1673644435725,9.43e-06,1426.1,1426.0,37.24573479]
[1673644436058,9.43e-06,1426.1,1426.0,37.24573469]
[1673644436267,9.43e-06,1426.1,1426.0,34.66839467]
[1673644436499,9.43e-06,1426.1,1426.0,34.66839452]
[1673644436810,9.43e-06,1426.1,1426.0,34.66839437]
[1673644437020,9.43e-06,1426.1,1426.0,34.66839428]
[1673644437235,9.43e-06,1426.1,1426.0,34.66839421]
[1673644437388,9.43e-06,1426.1,1426.0,34.66839414]
[1673644437598,9.43e-06,1426.1,1426.0,33.68939411]
[1673644437847,9.43e-06,1426.1,1426.0,17.7303794]
[1673644438174,9.43e-06,1426.1,1426.0,17.72829383]
[1673644438338,9.43e-06,1426.1,1426.0,17.72829375]
[1673644438553,9.43e-06,1426.1,1426.0,17.72829371]
[1673644438794,9.43e-06,1426.1,1426.0,17.72829367]
[1673644438967,9.43e-06,1426.1,1426.0,10.71567362]
[1673644439182,9.43e-06,1426.1,1426.0,10.7156736]
[1673644439550,9.43e-06,1426.1,1426.0,10.71567357]
[1673644439709,9.43e-06,1426.1,1426.0,10.71567354]
[1673644439908,9.43e-06,1426.1,1426.0,17.72829351]
[1673644440124,9.43e-06,1426.1,1426.0,24.74091349]
[1673644440385,9.43e-06,1426.1,1426.0,17.72829345]
[1673644440597,9.43e-06,1426.1,1426.0,17.72829342]
[1673644440803,9.43e-06,1426.1,1426.0,17.72829339]
[1673644440971,9.43e-06,1426.1,1426.0,17.72829333]
[1673644441332,9.43e-06,1426.1,1426.0,24.74091329]
[1673644441669,9.43e-06,1426.1,1426.0,17.72829323]
[1673644441858,9.43e-06,1426.1,1426.0,24.74091321]
[1673644442019,9.43e-06,1426.1,1426.0,17.72829319]
[1673644442236,9.43e-06,1426.1,1426.0,17.72829314]
[1673644442589,9.43e-06,1426.1,1426.0,3.70305312]
[1673644442801,9.43e-06,1426.1,1426.0,0.03072039]
[1673644442974,1.08262315,1426.1,1426.0,0.03072039]
[1673644443188,10.70188091,1426.1,1426.0,0.03072039]
[1673644443439,10.76788091,1426.1,1426.0,0.03072038]
[1673644443747,3.75575091,1426.1,1426.0,0.03072038]
[1673644443972,3.68975091,1426.1,1426.0,0.03072038]
[1673644444888,2.12875091,1426.1,1426.0,0.03072038]